Cogmind - Beta 13 @@@ ROGUE MODE // 2024.07.05 @ 00:47:50 Player: Elec0 Result: Destroyed by as-31238 with Assembled Rifle Performance ------------- Evolutions (0) 0 Regions Visited (2) 400 Robots Destroyed (15) 75 Value Destroyed (224) 224 Prototype IDs (0) 0 Alien Tech Used (0) 0 Bonus (0) 0 TOTAL SCORE: 699 Bonus ------- None Cogmind --------- Core Integrity 0/250 Matter 211/300 Energy 125/125 System Corruption 2% Temperature Cool (0) Movement Flying (120) Ox1 Location -10/Mines Parts ------- > --- POWER (1) -------- Light Ion Engine > --- PROPULSION (2) --- Flight Unit > --- UTILITY (2) ------ Improved Terrain Scanner ECM Suite > --- WEAPON (2) ------- (None) > --- INVENTORY (5) ---- Propulsion Shielding Small Laser Slug Cannon Grenade Launcher Mining Laser Peak State ------------ > --- POWER ------------ Light Ion Engine > --- PROPULSION ------- Aluminum Leg Aluminum Leg > --- UTILITY ---------- Large Storage Unit Improved Terrain Scanner > --- WEAPON ----------- Small Laser Small Laser > --- INVENTORY -------- Light Ion Engine Aluminum Leg Wheel Flight Unit Seismic Detector ECM Suite Propulsion Shielding Small Laser Small Laser Small Laser [Rating: 10] Favorites ----------- Power Light Ion Engine Engine Light Ion Engine Power Core Light Nuclear Core Propulsion Aluminum Leg Leg Aluminum Leg Wheel Wheel Flight Unit Flight Unit Utility Improved Terrain Scanner Device Improved Terrain Scanner Storage Large Storage Unit Weapon Small Laser Energy Gun Small Laser Ballistic Cannon Slug Cannon Launcher Grenade Launcher Special Weapon Mining Laser Build | -11 -10 -10 ------- Run | Yrd Mat Min Slots Evolved . | . . . Power . | . . . Propulsion . | . . . Utility . | . . . Weapon . | . . . Parts Attached 30 | 10 8 12 Power 4 | 2 . 2 Engine 3 | 2 . 1 Core 1 | . . 1 Reactor . | . . . Propulsion 7 | 3 2 2 Treads . | . . . Leg 2 | 2 . . Wheel 1 | 1 . . Hover . | . . . Flight 4 | . 2 2 Utility 9 | 2 4 3 Device 8 | 2 3 3 Storage 1 | . 1 . Processor . | . . . Hackware . | . . . Protection . | . . . Artifact . | . . . Weapon 10 | 3 2 5 Energy Gun 6 | 3 1 2 Energy Cannon . | . . . Ballistic Gun . | . . . Ballistic Cannon 1 | . . 1 Launcher 1 | . . 1 Special Weapon 2 | . 1 1 Impact Weapon . | . . . Slashing Weapon . | . . . Piercing Weapon . | . . . Special Melee Weapon . | . . . Unidentified Prototypes . | . . . Parts Lost 4 | . . 4 Power 1 | . . 1 Propulsion 2 | . . 2 Utility 1 | . . 1 Weapon . | . . . Highest Loss Streak 2 | . . 2 To Critical Strikes . | . . . Average Slot Usage (%) 91 | . 99 77 Engine 11 | . 14 7 Core 1 | . . 5 Leg 15 | . 22 . Flight 12 | . 5 27 Device 17 | . 16 19 Storage 7 | . 10 . Energy Gun 22 | . 27 11 Special Weapon 1 | . . 5 Naked Turns . | . . . Heaviest Build 26 | 7 26 9 Greatest Support 20 | 20 20 8 Greatest Overweight (x) 1 | . 1 1 Average Overweight (x) . | . . . Largest Inventory Capacity 15 | 5 15 5 Average Capacity 8 | 5 12 5 Most Carried 11 | 5 11 5 Average Carried 5 | 3 7 4 Final Capacity 5 | 5 5 5 Final Carried 5 | 3 5 5 Class Distribution -------------------- 86% | Mutant 13% | Scavenger-Mutant Dominant Class ---------------- Mutant | -10/Materials Mutant | -10/Mines Resources | -11 -10 -10 ----------- Run | Yrd Mat Min Matter Collected 433 | 300 70 63 Remotely . | . . . Salvage Created 450 | 156 226 68 Parts 31 | 8 13 10 Haulers Intercepted . | . . . Recyclers Shooed 1 | . . 1 Parts Field Recycled . | . . . Retrieved Matter . | . . . Parts Self-Destructed . | . . . Prevented . | . . . Kills | -11 -10 -10 ------- Run | Yrd Mat Min Combat Hostiles Destroyed 8 | 1 5 2 Guns 7 | 1 5 1 AOE 1 | . . 1 Classes Destroyed 7 | 3 2 2 Worker 1 | 1 . . Builder 2 | . . 2 Tunneler 4 | 4 . . Recycler 1 | . 1 . Swarmer 3 | . 3 . Grunt 4 | 1 2 1 Assembled 1 | . . 1 Best Kill Streak 4 | 3 4 2 Combat Bots Only 3 | 1 3 1 Max Kills in Single Turn 2 | 1 1 2 Gunslinging . | . . . Exploded 1 | . . 1 Melee . | . . . Uniques/NPCs Destroyed . | . . . Combat | -11 -10 -10 -------- Run | Yrd Mat Min Hostile Shots Fired 55 | 8 27 20 Missed 14 | . 6 8 Damage Taken 664 | 87 197 380 Core 255 | 23 39 193 Absorbed by Shields . | . . . Core Remaining (%) 90 | 90 . . Volleys Fired 60 | 20 20 20 Largest 2 | 2 2 2 Hottest 100 | 80 80 100 Shots Fired 104 | 36 40 28 Gun 93 | 36 40 17 Cannon 2 | . . 2 Launcher 3 | . . 3 Special 6 | . . 6 Kinetic 2 | . . 2 Thermal 99 | 36 40 23 Explosive 3 | . . 3 Electromagnetic . | . . . Robot Hit Streak 13 | 5 13 6 Robot Miss Streak 4 | 2 2 4 Penetration Max 1 | . . 1 Secondary Targets 2 | . 2 . Max Gunslinging Chain 1 | . 1 . Shots Hit Robots 58 | 22 24 12 Core Hits 25 | 7 11 7 Critical Kills . | . . . Critical Parts Destroyed . | . . . Critical Strikes . | . . . Melee Attacks . | . . . Impact . | . . . Slashing . | . . . Piercing . | . . . Sneak Attacks . | . . . Combat Hostiles . | . . . Follow-up Attacks . | . . . Damage Inflicted 904 | 246 261 397 Guns 608 | 246 261 101 Cannons 100 | . . 100 Explosions 196 | . . 196 Melee . | . . . Ramming . | . . . Kinetic 100 | . . 100 Thermal 608 | 246 261 101 Explosive 196 | . . 196 Electromagnetic . | . . . Impact . | . . . Slashing . | . . . Piercing . | . . . Highest Corruption 2 | . . 2 Average Corruption 2 | . . 2 Corruption Purged . | . . . Corruption Blocked . | . . . Overload Shots . | . . . Overflow Damage 3 | . . 3 Projectiles 3 | . . 3 Explosions . | . . . Melee . | . . . Knockbacks 1 | . . 1 Impact . | . . . Kinetic 1 | . . 1 Secondary . | . . . Self-Inflicted Damage . | . . . Shots . | . . . Rammed . | . . . Targets Rammed . | . . . Kicked . | . . . Crushed . | . . . Highest Temperature 246 | 246 96 183 Average Temperature 77 | 118 36 85 Received Heat Transfer 158 | 48 48 62 Effects 1 | 1 . . Interference 1 | 1 . . Siege Activations . | . . . Robots Corrupted . | . . . Combat Hostiles . | . . . Parts Fried . | . . . Impact Corruptions . | . . . Robots Melted . | . . . Combat Hostiles . | . . . Parts Melted . | . . . Heat Transferred 1375 | 550 600 225 Parts Sabotaged . | . . . Parts Stolen . | . . . Parts Stripped . | . . . Power Chain Reactions . | . . . Alert | -11 -10 -10 ------- Run | Yrd Mat Min Peak Influence 189 | 45 189 94 Initial 73 | . 29 73 Average 60 | 24 73 85 Maximum Alert Level . | . . . Low Security (%) 100 | 100 100 100 Level 1 . | . . . Level 2 . | . . . Level 3 . | . . . Level 4 . | . . . Level 5 . | . . . High Security . | . . . Max Security . | . . . Squads Dispatched 2 | . 2 . Investigation 1 | . 1 . Extermination . | . . . Reinforcement 1 | . 1 . Assault . | . . . Garrison . | . . . Intercept . | . . . Searches Triggered . | . . . Construction Impeded . | . . . Haulers Reinforced . | . . . Active Scanning Responses . | . . . Cargo Convoy Interrupts . | . . . Stealth | -11 -10 -10 --------- Run | Yrd Mat Min Distress Signals . | . . . Communications Jammed . | . . . Distress Signals . | . . . Times Spotted 26 | 1 8 17 Peak Tracking Total 17 | 1 4 17 Tactical Retreats 3 | . 1 2 Traps | -11 -10 -10 ------- Run | Yrd Mat Min Traps Triggered . | . . . Indirectly . | . . . Trap Hack Attempts . | . . . Triggered . | . . . Disarmed . | . . . Reprogrammed . | . . . Reused . | . . . Traps Extracted . | . . . Installed . | . . . Triggered . | . . . Machines | -11 -10 -10 ---------- Run | Yrd Mat Min Machines Disabled . | . . . Max in Single Turn . | . . . Machines Repaired . | . . . Machines Dismantled . | . . . Machines Sabotaged . | . . . Overloaded Fab Kills . | . . . Hacking | -11 -10 -10 --------- Run | Yrd Mat Min Machines Accessed 1 | . 1 . Terminals 1 | . 1 . Fabricators . | . . . Repair Stations . | . . . Recycling Units . | . . . Scanalyzers . | . . . Garrison Access . | . . . Total Hacks 4 | . 4 . Successful 2 | . 2 . Failed 2 | . 2 . Catastrophic . | . . . Database Lockouts . | . . . Manual . | . . . Terminals 4 | . 4 . Fabricators . | . . . Repair Stations . | . . . Recycling Units . | . . . Scanalyzers . | . . . Garrison Access . | . . . Terminal Hacks 2 | . 2 . Robot Analysis 1 | . 1 . Zone Layout 1 | . 1 . Fabricator Hacks . | . . . Repair Station Hacks . | . . . Recycling Unit Hacks . | . . . Scanalyzer . | . . . Garrison Access Hacks . | . . . Unauthorized Hacks . | . . . Terminals . | . . . Fabricators . | . . . Repair Stations . | . . . Recycling Units . | . . . Scanalyzers . | . . . Garrison Access . | . . . Data Cores Recovered . | . . . Used . | . . . Hacking Detections 1 | . 1 . Full Trace Events 1 | . 1 . Feedback Events . | . . . Feedback Blocked . | . . . Robot Schematics Acquired . | . . . Robots Built . | . . . Authchips . | . . . Time . | . . . Total Robot Build Rating . | . . . Part Schematics Acquired . | . . . Parts Built . | . . . Authchips . | . . . Time . | . . . Total Part Build Rating . | . . . Parts Repaired . | . . . Time . | . . . Parts Recycled . | . . . Recycled Matter . | . . . Retrieved Matter . | . . . Retrieved Components . | . . . Parts Scanalyzed . | . . . Part Schematics Acquired . | . . . Parts Damaged . | . . . Bothacking | -11 -10 -10 ------------ Run | Yrd Mat Min Used RIF Installer . | . . . Robots Hacked . | . . . Non-combat . | . . . Combat . | . . . Robot Hacks Applied . | . . . Relay Couplers Released . | . . . Fabnet Peak Effective % . | . . . Robots Rewired . | . . . Allies Hacked . | . . . Hacks Repelled . | . . . Allies | -11 -10 -10 -------- Run | Yrd Mat Min Total Allies . | . . . Largest Group . | . . . Highest-Rated Group . | . . . Highest-Rated Ally . | . . . Total Orders . | . . . Ally Attacks . | . . . Total Damage . | . . . Kills . | . . . Allies Corrupted . | . . . Allies Melted . | . . . Intel | -11 -10 -10 ------- Run | Yrd Mat Min Robot Analysis Total 1 | . 1 . Derelict Logs Recovered . | . . . Drone Launches . | . . . Drone Recoveries . | . . . Exploration | -11 -10 -10 ------------- Run | Yrd Mat Min Turns Passed 819 | 265 373 181 Spaces Moved 548 | 167 178 203 Core 17 | 17 . . Treads . | . . . Legs 231 | 146 85 . Wheels 4 | 4 . . Hover . | . . . Flight 296 | . 93 203 Fastest Speed 37 | 50 37 37 Average Speed 82 | 111 105 38 Slowest Speed 190 | 120 190 120 Overloaded Moves . | . . . Propulsion Burnouts . | . . . Robots Hopped 4 | . 2 2 Cave-ins Triggered 1 | . . 1 Exploration Rate (%) 26 | 6 31 43 Regions Visited 2 Branch Regions 1 Pre-discovered Areas . | . . . Known Exits Taken . | . . . Unknown Exits Taken 2 | 1 1 . Scrap Searched . | . . . Spaces Dug 6 | . . 6 Terrain Destroyed 26 | . . 26 Melee . | . . . Projectile 6 | . . 6 AOE 20 | . . 20 Terrain Rammed . | . . . Walls Destroyed . | . . . Machines Disabled . | . . . Actions | -11 -10 -10 --------- Run | Yrd Mat Min Total 799 | 206 325 268 Wait 120 | . 99 21 Move 537 | 166 173 198 Hop 4 | . 2 2 Pick Up 22 | 8 11 3 Fast Attach 5 | 4 . 1 Attach 16 | 3 5 8 Detach 10 | . 3 7 Swap 9 | 3 3 3 Drop 15 | 2 9 4 Fire 60 | 20 20 20 Melee . | . . . Ram . | . . . Kick . | . . . Crush . | . . . Escape Stasis 1 | . . 1 Rewire . | . . . Trap . | . . . Miscellaneous . | . . . Route ------- -11/Scrapyard -10/Materials -10/Mines History --------- Turn | Location | Event 2 | -11/Scrapyard | Met Revision 17 89 | -11/Scrapyard | Discovered new exit (range 8) 266 | -11/Scrapyard | Entered Materials 313 | -10/Materials | Build established: Mutant 340 | -10/Materials | Discovered new exit (range 10) 639 | -10/Materials | Entered Mines 707 | -10/Mines | A weapon hastily lodged in a ceiling crevice suddenly fell to the ground 753 | -10/Mines | Crushed by falling debris 754 | -10/Mines | Core integrity fell below 50% 805 | -10/Mines | Assembled infested the area 805 | -10/Mines | YI-UF0 nonchalantly dropped a Grenade Launcher on the ground 817 | -10/Mines | Core integrity fell below 20% 820 | -10/Mines | Destroyed by as-31238 with Assembled Rifle Last Messages --------------- YI-UF0 nonchalantly drops a Grenade Launcher on the ground. Acquired Grenade Launcher. K-01 Serf collects debris. Flight Unit destroyed. YI-UF0: "BOOSH!" T-07 Excavator destroyed. YI-UF0: "WHOMP!" K-01 Serf destroyed. as-09096 destroyed. The unstable cave ceiling collapses. as-75271 destroyed. as-16916 destroyed. YI-UF0: "KABOOM!" as-27273 destroyed. YI-UF0: "Whaaaaaaaa!" as-93283 destroyed. as-06374 destroyed. as-05847 destroyed. [Achievement: First Step to Greatness] Map ----- +----------------------------------------------------+ | ????????????????????????????????????????????? | | ????????????????????????????????????????????? | | ????????????????????????????????????????????? | | ????????????????????????????????????????????? | | ??????????????????????????????????????## ???? | | ????????????????????????????????????## ???? | | ???????????????????????????????????? ???? | | ????????????????????????????????????? ???? | | ?????????????????????????????????????# ???? | | ?????????????????????????????????????# #??? | | ?????????????????????????????????????# ##? | | ?????????????????#???####????????????# #? | | ?????????????????????# ????????????# ## | | ?????????????????????# #????????????# # | | ??????????????????#??# #?????????????# | | ?????????????????????# #??????????????# | | ?????????????????????# #???????????????# | | ????????????????????## ##??#??????????## | | ???????????????? ????# ##??????????### | | ??????????????##????## #??####???## | | ?????????????? ### ##?# ##### | | ??????????????? ### ## # | | ????????#????#?????## ! ## ##### | | ?????????????# ?#### ##???? | | ?????????????# # ##????? | | ?????????????# @ ## ###########?????? | | ?????????????# #### #???????????????? | | ????????? g #??## #???????????????? | | ??????a a #???# #########??????#? | | ??????aa #???# #???????? | | ??????# a # ####???######### #???????? | | ???#?# a ###??????#???????# #???????? | | ?????# a ??????????????????# #???????? | | ?????## ???????????????????# #???????? | | ??????## ???????????????????#!#???????? | | ????????# ????????????????????#!#???????? | | ?????????### ?????????????????????#!#????#### | | ??????????? ????????#####????????# #?? | | ??????????# ?????????# ###??????### ## | | ?????????????????#???## ##???#??# #???? | | ????????????????####### ##??????# #???? | | ????????????????# ######### #######???? | | ????????????????# """ #?????????? | | ????????????????# """ #?????????? | | ????????????????# """ ###########?????????? | | ????????????????# #???????????????????? | | ????????????????# """ #???????????????????? | | ????????????????# """ #???????????????????? | | ????????????????# """ #???????????????????? | | ????????????????# #???????????????????? | +----------------------------------------------------+ Best States ------------- Heat Dissipation 25 Energy Generation 14 Energy Capacity 160 Matter Stores 300 Matter Capacity 300 Sight Range 16 Terrain Scan Range 16 Terrain Scan Density 10 ECM Strength 1 Evasion (%) 62 Item Schematics ----------------- None Robot Schematics ------------------ None Fabricated ------------ Nothing Alien Tech Used ----------------- None Achievements -------------- First Step to Greatness Challenges ------------ None Game ------ Seed ShadeLatentEngine Manual? 0 Play Time 00:21:26 Cumulative 3.5 hours Start 2024.07.05 @ 00:27:39 End 2024.07.05 @ 00:47:50 Sessions 1 Manual Loads 0 Difficulty Rogue Special Mode None Game No. 2 Rogue 2 Adventurer 0 Explorer 0 Win Type - Total 0 Types 0/0/0/0/0/0/0/0/0 Lore% 1 Gallery% 7 Achievement% 7 Wizard Run 0 Options --------- Layout 1 ASCII 0 Keyboard 0 Movement Mouse Keybinds 0 Fullscreen 1 Font 24/Smallcaps Map View 50x35 Zoom Use 0% Tactical HUD 0 Map Filters NONE Filters NONE Steam 1 RUN: 112d7d2c-f213-4d61-a9c0-b35811a79d2c